bitfinex/quotes_BTCUSD_20240623
["timestamp","ask_amount","ask_price","bid_price","bid_amount"]
[1719144395965,0.51714904,64441.0,64440.0,0.4181237]
[1719144397202,0.51714904,64441.0,64440.0,0.42591302]
[1719144398745,0.51714904,64441.0,64440.0,0.4181237]
[1719144399125,0.77706235,64441.0,64440.0,0.4181237]
[1719144399428,0.8275157,64441.0,64440.0,0.4181237]
[1719144399632,0.82752052,64441.0,64440.0,0.4181237]
[1719144400414,0.82752052,64441.0,64440.0,0.42591302]
[1719144401029,0.82753643,64441.0,64440.0,0.42591302]
[1719144401240,0.82753643,64441.0,64440.0,0.4181237]
[1719144402300,0.77706235,64441.0,64440.0,0.4181237]
[1719144402495,0.82751526,64441.0,64440.0,0.4181237]
[1719144405488,0.82751725,64441.0,64440.0,0.4181237]
[1719144408807,0.77706235,64441.0,64440.0,0.4181237]
[1719144409015,0.82768389,64441.0,64440.0,0.4181237]
[1719144410507,0.82768389,64441.0,64440.0,0.36549301]
[1719144410717,0.82775355,64441.0,64440.0,0.36549301]
[1719144411987,0.77706235,64441.0,64440.0,0.36549301]
[1719144412187,0.82781253,64441.0,64440.0,0.36549301]
[1719144415296,0.82784627,64441.0,64440.0,0.36549301]
[1719144416705,0.82784627,64441.0,64440.0,0.41091474]
[1719144418514,0.82781712,64441.0,64440.0,0.41091474]
[1719144418912,0.77706235,64441.0,64440.0,0.41091474]
[1719144419126,0.82782021,64441.0,64440.0,0.41091474]
[1719144419768,0.81534049,64441.0,64440.0,0.41091474]
[1719144420169,1.12570149,64441.0,64440.0,0.41091474]
[1719144420972,1.07494363,64441.0,64440.0,0.41091474]
[1719144421147,1.12532516,64441.0,64440.0,0.41091474]
[1719144424152,1.1249134,64441.0,64440.0,0.41091474]
[1719144427184,1.07494363,64441.0,64440.0,0.41091474]
[1719144427390,1.12476062,64441.0,64440.0,0.41091474]
[1719144427788,1.11507781,64441.0,64440.0,0.41091474]
[1719144428002,1.12475087,64441.0,64440.0,0.41091474]
[1719144429404,1.22475087,64441.0,64440.0,0.41091474]
[1719144430431,1.17494363,64441.0,64440.0,0.41091474]
[1719144430634,1.22496471,64441.0,64440.0,0.41091474]
[1719144433750,1.22519562,64441.0,64440.0,0.41091474]
[1719144436623,1.17494363,64441.0,64440.0,0.41091474]
[1719144436882,1.22520049,64441.0,64440.0,0.41091474]
[1719144437202,1.17494363,64441.0,64440.0,0.41091474]
[1719144437414,1.22519741,64441.0,64440.0,0.41091474]
[1719144438491,1.22521856,64441.0,64440.0,0.41091474]
[1719144440089,1.22521864,64441.0,64440.0,0.41091474]
[1719144443192,1.21552917,64441.0,64440.0,0.41091474]
[1719144443374,1.22520223,64441.0,64440.0,0.41091474]
[1719144446407,1.17494363,64441.0,64440.0,0.41091474]
[1719144446637,1.22519532,64441.0,64440.0,0.41091474]
[1719144447076,1.2251849,64441.0,64440.0,0.41091474]
[1719144447901,1.2130239,64441.0,64440.0,0.41091474]
[1719144449579,1.16278263,64441.0,64440.0,0.41091474]
[1719144449792,1.21300298,64441.0,64440.0,0.41091474]
[1719144451268,1.21300298,64441.0,64440.0,0.41091478]
[1719144452809,1.21300294,64441.0,64440.0,0.41091478]
[1719144455943,1.16278263,64441.0,64440.0,0.41091478]
[1719144456163,1.21303074,64441.0,64440.0,0.41091478]
[1719144456544,1.16278263,64441.0,64440.0,0.41091478]
[1719144456747,1.21303109,64441.0,64440.0,0.41091478]
[1719144457918,1.21317183,64441.0,64440.0,0.41091478]
[1719144458735,1.21317183,64441.0,64440.0,0.3935631]
[1719144458932,1.21317183,64441.0,64440.0,0.41433851]
[1719144459141,1.21315052,64441.0,64440.0,0.41433851]
[1719144462304,1.2135337,64441.0,64440.0,0.41433851]
[1719144465434,1.16278263,64441.0,64440.0,0.41433851]
[1719144465880,1.21358568,64441.0,64440.0,0.41433851]
[1719144466053,1.16278263,64441.0,64440.0,0.41433851]
[1719144466259,1.21358568,64441.0,64440.0,0.41433851]
[1719144467503,1.21390231,64441.0,64440.0,0.41433851]
[1719144468860,1.16278263,64441.0,64440.0,0.41433851]
[1719144469061,1.21389971,64441.0,64440.0,0.41433851]
[1719144472127,1.21390888,64441.0,64440.0,0.41433851]
[1719144475254,1.16278263,64441.0,64440.0,0.41433851]
[1719144475462,1.21390076,64441.0,64440.0,0.41433851]
[1719144477022,1.21385895,64441.0,64440.0,0.41433851]
[1719144478420,1.16278263,64441.0,64440.0,0.41433851]
[1719144478666,1.21399792,64441.0,64440.0,0.41433851]
[1719144481144,1.16278263,64441.0,64440.0,0.41433851]
[1719144481362,1.21408788,64441.0,64440.0,0.41433851]
[1719144482281,1.21410336,64441.0,64440.0,0.41433851]
[1719144484141,1.16278263,64441.0,64440.0,0.41433851]
[1719144484350,1.21392208,64441.0,64440.0,0.41433851]
[1719144484729,1.21404272,64441.0,64440.0,0.41433851]
[1719144485436,1.21489272,64441.0,64440.0,0.41433851]
[1719144486064,1.21492329,64441.0,64440.0,0.41433851]
[1719144490646,1.16363263,64441.0,64440.0,0.41433851]
[1719144490847,1.21493522,64441.0,64440.0,0.41433851]
[1719144493707,1.21491526,64441.0,64440.0,0.41433851]
[1719144496815,1.16363263,64441.0,64440.0,0.41433851]
[1719144497022,1.21492638,64441.0,64440.0,0.41433851]
[1719144500163,1.21989478,64441.0,64440.0,0.41433851]
[1719144503395,1.16861286,64441.0,64440.0,0.41433851]
[1719144503510,1.16861286,64441.0,64440.0,0.41433855]
[1719144503511,1.22053451,64441.0,64440.0,0.41433855]
[1719144503915,1.2205384,64441.0,64440.0,0.41433855]
[1719144504372,1.22053841,64441.0,64440.0,0.41433855]
[1719144506227,1.2205345,64441.0,64440.0,0.41433855]
[1719144509847,1.22053451,64441.0,64440.0,0.41433855]
[1719144512951,1.22040636,64441.0,64440.0,0.41433855]
[1719144513379,0.91004536,64441.0,64440.0,0.41433855]
[1719144516252,0.91134247,64441.0,64440.0,0.41433855]
[1719144519320,0.91142242,64441.0,64440.0,0.41433855]
[1719144522361,0.85887252,64441.0,64440.0,0.41433855]
[1719144522566,0.91149844,64441.0,64440.0,0.41433855]
[1719144522964,0.85887252,64441.0,64440.0,0.41433855]
[1719144523310,0.91152392,64441.0,64440.0,0.41433855]
[1719144524274,0.85887252,64441.0,64440.0,0.41433855]
[1719144524504,0.91153182,64441.0,64440.0,0.41433855]
[1719144525998,0.91154057,64441.0,64440.0,0.41433855]
[1719144528945,0.91155157,64441.0,64440.0,0.41433855]
[1719144532194,0.85887252,64441.0,64440.0,0.41433855]
[1719144532365,0.91151708,64441.0,64440.0,0.41433855]
[1719144532806,0.85887252,64441.0,64440.0,0.41433855]
[1719144532996,0.91151708,64441.0,64440.0,0.41433855]
[1719144534224,0.9115596,64441.0,64440.0,0.41433855]
[1719144535567,0.9115809,64441.0,64440.0,0.41433855]
[1719144538583,0.91157243,64441.0,64440.0,0.41433855]
[1719144541052,0.85887252,64441.0,64440.0,0.41433855]
[1719144541276,0.91145399,64441.0,64440.0,0.41433855]
[1719144541753,0.91139697,64441.0,64440.0,0.41433855]
[1719144543104,0.91145663,64441.0,64440.0,0.41433855]
[1719144547419,0.85887252,64441.0,64440.0,0.41433855]
[1719144547632,0.91143766,64441.0,64440.0,0.41433855]
[1719144550525,0.85887252,64441.0,64440.0,0.41433855]
[1719144550761,0.91149318,64441.0,64440.0,0.41433855]
[1719144550968,0.85887252,64441.0,64440.0,0.41433855]
[1719144551171,0.91149318,64441.0,64440.0,0.41433855]
[1719144552172,0.86854528,64441.0,64440.0,0.41433855]
[1719144552443,0.91152159,64441.0,64440.0,0.41433855]
[1719144556636,0.85887252,64441.0,64440.0,0.41433855]
[1719144556843,0.9113857,64441.0,64440.0,0.41433855]
[1719144559832,0.85887252,64441.0,64440.0,0.41433855]
[1719144560065,0.911389,64441.0,64440.0,0.41433855]
[1719144560448,0.91123042,64441.0,64440.0,0.41433855]
[1719144563119,0.91108652,64441.0,64440.0,0.41433855]
[1719144563322,0.91108652,64441.0,64440.0,0.42212787]
[1719144563528,1.05098983,64441.0,64440.0,0.42212787]
[1719144563674,0.91108652,64441.0,64440.0,0.42212787]
[1719144566377,0.91123903,64441.0,64440.0,0.42212787]
[1719144569491,0.91129348,64441.0,64440.0,0.42212787]
[1719144569694,0.91128514,64441.0,64440.0,0.42212787]
[1719144570145,0.85887252,64441.0,64440.0,0.42212787]
[1719144570323,0.91128514,64441.0,64440.0,0.42212787]
[1719144571333,0.91126801,64441.0,64440.0,0.42212787]
[1719144571582,0.91126801,64441.0,64440.0,0.37670614]
[1719144572875,0.9112766,64441.0,64440.0,0.37670614]
[1719144576119,0.91116018,64441.0,64440.0,0.37670614]
[1719144576919,0.91116018,64441.0,64440.0,0.20156516]
[1719144577080,0.46551288,64439.0,64438.0,0.000935]
[1719144577278,0.51780054,64439.0,64438.0,0.0290285]
[1719144578521,0.51780054,64439.0,64438.0,0.0300285]
[1719144579120,0.50809183,64439.0,64438.0,0.0530285]
[1719144579332,0.56034354,64439.0,64438.0,0.0530285]
[1719144579752,0.56135112,64439.0,64438.0,0.0540285]
[1719144580071,0.56135112,64439.0,64438.0,0.2273285]
[1719144580419,0.56150631,64439.0,64438.0,0.2273285]
[1719144581038,0.56148664,64439.0,64438.0,0.2273285]
[1719144582327,0.50924702,64439.0,64438.0,0.2273285]
[1719144582536,0.56147852,64439.0,64438.0,0.2273285]
[1719144583743,0.56147852,64439.0,64438.0,0.37988962]
[1719144584297,0.56147852,64439.0,64438.0,0.35179612]
[1719144584502,0.56147852,64439.0,64438.0,0.37160886]
[1719144585470,0.50924702,64439.0,64438.0,0.37160886]
[1719144585626,0.70141233,64439.0,64438.0,0.37160886]
[1719144586052,0.50924702,64439.0,64438.0,0.37160886]
[1719144586264,0.56148033,64439.0,64438.0,0.37160886]
[1719144586461,0.70141236,64439.0,64438.0,0.37160886]
[1719144588992,0.70141244,64439.0,64438.0,0.37160886]
[1719144589462,0.70143295,64439.0,64438.0,0.37160886]
[1719144590875,0.56135403,64439.0,64438.0,0.37160886]
[1719144592111,0.50924702,64439.0,64438.0,0.37160886]
[1719144592312,0.56115694,64439.0,64438.0,0.37160886]
[1719144594590,0.70107412,64439.0,64438.0,0.37160886]
[1719144595111,0.65849517,64439.0,64438.0,0.37160886]
[1719144595329,0.46666807,64439.0,64438.0,0.37160886]
[1719144595528,0.65849343,64439.0,64438.0,0.37160886]
[1719144598411,0.46666807,64439.0,64438.0,0.37160886]
[1719144598567,0.65845955,64439.0,64438.0,0.37160886]
[1719144598947,0.46666807,64439.0,64438.0,0.37160886]
[1719144599158,0.65847437,64439.0,64438.0,0.37160886]
[1719144599378,0.34814649,64439.0,64438.0,0.43676975]
[1719144599930,0.65851749,64439.0,64438.0,0.43676975]
[1719144600360,0.65850887,64439.0,64438.0,0.43676975]
[1719144601117,0.65850849,64439.0,64438.0,0.43676975]
[1719144604154,0.65823665,64439.0,64438.0,0.43676975]
[1719144604866,0.65823665,64439.0,64438.0,0.19830886]
[1719144604867,0.96860765,64439.0,64438.0,0.19830886]
[1719144605073,0.82870437,64439.0,64438.0,0.19830886]
[1719144605354,0.82870437,64439.0,64438.0,0.17849612]
[1719144605355,1.13907537,64439.0,64438.0,0.17849612]
[1719144605554,1.13907537,64439.0,64438.0,0.1985385]
[1719144605763,1.13907537,64439.0,64438.0,0.17849612]
[1719144605970,0.77595,64437.0,64436.0,0.08]
[1719144606124,0.96747116,64437.0,64436.0,0.1010838]
[1719144607140,0.77595,64437.0,64436.0,0.1010838]
[1719144607334,0.96689094,64437.0,64436.0,0.1010838]
[1719144607603,0.96789094,64437.0,64436.0,0.2760838]
[1719144607775,0.91683423,64437.0,64436.0,0.2760838]
[1719144607987,0.91683423,64437.0,64436.0,0.2990838]
[1719144607988,0.96793054,64437.0,64436.0,0.2990838]
[1719144608178,0.96793054,64437.0,64436.0,0.2212838]
[1719144608989,0.96793094,64437.0,64436.0,0.2212838]
[1719144609389,0.96808613,64437.0,64436.0,0.1260838]
[1719144610582,0.82820459,64437.0,64436.0,0.1260838]
[1719144611544,0.86063781,64437.0,64436.0,0.1260838]
[1719144612157,0.86063781,64437.0,64436.0,0.17659918]
[1719144612470,0.86063781,64437.0,64436.0,0.1966435]
[1719144613485,0.86063781,64437.0,64436.0,0.14612812]
[1719144614452,0.96063781,64437.0,64436.0,0.14612812]
[1719144614852,0.96063781,64437.0,64436.0,0.1260838]
[1719144616678,0.96049698,64437.0,64436.0,0.1260838]
[1719144617220,0.96049877,64437.0,64436.0,0.1260838]
[1719144618463,0.96049906,64437.0,64436.0,0.1270188]
[1719144619930,0.9604618,64437.0,64436.0,0.1270188]
[1719144622244,0.8604618,64437.0,64436.0,0.1270188]
[1719144623050,0.8604618,64437.0,64436.0,0.14706312]
[1719144623269,0.86038222,64437.0,64436.0,0.1270188]
[1719144624433,1.00023144,64437.0,64436.0,0.1270188]
[1719144626159,0.80953841,64437.0,64436.0,0.1270188]
[1719144626376,1.00032055,64437.0,64436.0,0.1270188]
[1719144626823,0.86046964,64437.0,64436.0,0.1270188]
[1719144627024,1.00031997,64437.0,64436.0,0.1270188]
[1719144628215,1.0003265,64437.0,64436.0,0.1270188]
[1719144629501,0.80953841,64437.0,64436.0,0.1270188]
[1719144629662,1.00032768,64437.0,64436.0,0.1270188]
[1719144632566,1.00021806,64437.0,64436.0,0.1270188]
[1719144633694,1.00021688,64437.0,64436.0,0.1270188]
[1719144634551,0.86036062,64437.0,64436.0,0.1270188]
[1719144635743,0.49915841,64437.0,64436.0,0.1270188]
[1719144635927,0.54985971,64437.0,64436.0,0.1270188]
[1719144636146,0.54985971,64437.0,64436.0,0.2280188]
[1719144636348,0.49915841,64437.0,64436.0,0.2280188]
[1719144636555,0.5500756,64437.0,64436.0,0.2280188]
[1719144636941,0.5500756,64437.0,64436.0,0.3066188]
[1719144637638,0.55012097,64437.0,64436.0,0.3066188]
[1719144637864,0.55012097,64437.0,64436.0,0.32339639]
[1719144638967,0.55012449,64437.0,64436.0,0.32339639]
[1719144639431,0.23974449,64437.0,64436.0,0.32339639]
[1719144643137,0.33974449,64437.0,64436.0,0.32339639]
[1719144645229,0.33972705,64437.0,64436.0,0.32339639]
[1719144646435,0.33972192,64437.0,64436.0,0.32339639]
[1719144647626,0.28877841,64437.0,64436.0,0.32339639]
[1719144647833,0.33972228,64437.0,64436.0,0.32339639]
[1719144649098,0.28877841,64437.0,64436.0,0.32339639]
[1719144649339,0.33961486,64437.0,64436.0,0.32339639]
[1719144651480,0.33950922,64437.0,64436.0,0.32339639]
[1719144652239,0.28962841,64437.0,64436.0,0.32339639]
[1719144652436,0.34035323,64437.0,64436.0,0.32339639]
[1719144655394,0.28962841,64437.0,64436.0,0.32339639]
[1719144655736,0.34035021,64437.0,64436.0,0.32339639]
[1719144655921,0.29035021,64437.0,64436.0,0.39144343]
[1719144656156,0.23962841,64437.0,64436.0,0.39144343]
[1719144656357,0.2903502,64437.0,64436.0,0.39144343]
[1719144657493,0.29026799,64437.0,64436.0,0.39144343]
[1719144658468,0.29033441,64437.0,64436.0,0.39144343]
[1719144659290,0.29033441,64437.0,64436.0,0.32339639]
[1719144661197,0.29020742,64437.0,64436.0,0.32339639]
[1719144661608,0.19020742,64437.0,64436.0,0.32339639]
[1719144664811,0.1961698,64437.0,64436.0,0.32339639]
[1719144665034,0.29701552,64437.0,64436.0,0.32339639]
[1719144666179,0.29712479,64437.0,64436.0,0.32339639]
[1719144667445,0.28679988,64437.0,64436.0,0.32339639]
[1719144667657,0.28679988,64437.0,64436.0,0.39144343]
[1719144667658,0.2976372,64437.0,64436.0,0.39144343]
[1719144668501,0.1976372,64437.0,64436.0,0.39144343]
[1719144670572,0.19777713,64437.0,64436.0,0.39144343]
[1719144673702,0.19768121,64437.0,64436.0,0.39144343]
[1719144674120,0.18682135,64437.0,64436.0,0.39144343]
[1719144674334,0.19768114,64437.0,64436.0,0.39144343]
[1719144675440,0.13962841,64437.0,64436.0,0.39144343]
[1719144675639,0.19760066,64437.0,64436.0,0.39144343]
[1719144676893,0.1976142,64437.0,64436.0,0.39144343]
[1719144678974,0.1976142,64437.0,64436.0,0.32339639]
[1719144680000,0.19750034,64437.0,64436.0,0.32339639]
[1719144683190,0.19749621,64437.0,64436.0,0.32339639]
[1719144683841,0.13962841,64437.0,64436.0,0.32339639]
[1719144684038,0.19755274,64437.0,64436.0,0.32339639]
[1719144684274,0.19755274,64437.0,64436.0,0.39144323]
[1719144685000,0.13962841,64437.0,64436.0,0.39144323]
[1719144685206,0.19751127,64437.0,64436.0,0.39144323]
[1719144686315,0.13962841,64437.0,64436.0,0.39144323]
[1719144686517,0.19750414,64437.0,64436.0,0.39144323]
[1719144689758,0.19747553,64437.0,64436.0,0.39144323]
[1719144692765,0.18612498,64437.0,64436.0,0.39144323]
[1719144693097,0.19625432,64437.0,64436.0,0.39144323]
[1719144693467,0.18613318,64437.0,64436.0,0.39144323]
[1719144693671,0.19627113,64437.0,64436.0,0.39144323]
[1719144694675,0.19556695,64437.0,64436.0,0.39144323]
[1719144696012,0.13962841,64437.0,64436.0,0.39144323]
[1719144696224,0.1953876,64437.0,64436.0,0.39144323]
[1719144699411,0.5057676,64437.0,64436.0,0.39144323]
[1719144702462,0.45000841,64437.0,64436.0,0.39144323]
[1719144702682,0.50567997,64437.0,64436.0,0.39144323]
[1719144704232,0.50569717,64437.0,64436.0,0.39144323]
[1719144704437,0.19531717,64437.0,64436.0,0.39144323]
[1719144705518,0.1959399,64437.0,64436.0,0.39144323]
[1719144705701,0.5063199,64437.0,64436.0,0.39144323]
[1719144706316,0.5063199,64437.0,64436.0,0.32339639]
[1719144707098,0.45000841,64437.0,64436.0,0.32339639]
[1719144707308,0.19583055,64437.0,64436.0,0.32339639]
[1719144708827,0.19704114,64437.0,64436.0,0.32339639]
[1719144710773,0.19725348,64437.0,64436.0,0.32339639]
[1719144711931,0.13962841,64437.0,64436.0,0.32339639]
[1719144712098,0.19720857,64437.0,64436.0,0.32339639]
[1719144712302,0.19720857,64437.0,64436.0,0.39144343]
[1719144712511,0.19730104,64437.0,64436.0,0.39144343]
[1719144713819,0.19724782,64437.0,64436.0,0.39144343]
[1719144715221,0.13962841,64437.0,64436.0,0.39144343]
[1719144715415,0.19722789,64437.0,64436.0,0.39144343]
[1719144718454,0.1973477,64437.0,64436.0,0.39144343]
[1719144719706,0.05972448,64437.0,64436.0,0.39144343]
[1719144721017,0.01269456,64437.0,64436.0,0.39144343]
[1719144721217,0.00200519,64437.0,64436.0,0.39144343]
[1719144721352,0.11750745,64437.0,64436.0,0.39144343]
[1719144721548,0.05975632,64437.0,64436.0,0.39144343]
[1719144721757,0.11750395,64437.0,64436.0,0.39144343]
[1719144722344,0.11750395,64437.0,64436.0,0.37035963]
[1719144723087,0.11749987,64437.0,64436.0,0.37035963]
[1719144724175,0.11751128,64437.0,64436.0,0.37035963]
[1719144727350,0.11743979,64437.0,64436.0,0.37035963]
[1719144730479,0.11728248,64437.0,64436.0,0.37035963]
[1719144731049,0.11725853,64437.0,64436.0,0.37035963]
[1719144732268,0.1173401,64437.0,64436.0,0.37035963]
[1719144733757,0.11741667,64437.0,64436.0,0.37035963]
[1719144735648,0.11686368,64437.0,64436.0,0.37035963]
[1719144736430,0.25680867,64437.0,64436.0,0.37035963]
[1719144736859,0.21004248,64437.0,64436.0,0.37035963]
[1719144737055,0.256741,64437.0,64436.0,0.37035963]
[1719144739860,0.05975632,64437.0,64436.0,0.37035963]
[1719144740067,0.19897927,64437.0,64436.0,0.37035963]
[1719144740491,0.14194963,64437.0,64436.0,0.37035963]
[1719144740828,0.19897927,64437.0,64436.0,0.37035963]
[1719144741832,0.19891349,64437.0,64436.0,0.37035963]
[1719144742588,0.05896919,64437.0,64436.0,0.37035963]
[1719144742779,0.19891344,64437.0,64436.0,0.37035963]
[1719144743198,0.14194944,64437.0,64436.0,0.37035963]
[1719144743407,0.19897833,64437.0,64436.0,0.37035963]
[1719144748038,0.05903408,64437.0,64436.0,0.37035963]
[1719144749434,0.00200519,64437.0,64436.0,0.37035963]
[1719144749685,0.05892697,64437.0,64436.0,0.37035963]
[1719144750040,0.01228608,64437.0,64436.0,0.37035963]
[1719144750296,0.05871203,64437.0,64436.0,0.37035963]
[1719144751425,0.05862188,64437.0,64436.0,0.59951275]
[1719144751636,0.05862188,64437.0,64436.0,0.68241275]
[1719144751833,0.05862188,64437.0,64436.0,0.99279775]
[1719144752598,0.05862188,64437.0,64436.0,0.68241275]
[1719144752798,0.04630642,64437.0,64436.0,0.68471275]
[1719144756008,0.04544418,64437.0,64436.0,0.68471275]
[1719144756259,0.04544418,64437.0,64436.0,0.68486782]
[1719144756617,0.04544418,64437.0,64436.0,0.52967582]
[1719144759127,1.00968719,64440.0,64436.0,0.52967582]
[1719144759128,1.00968719,64440.0,64437.0,0.1033]
[1719144759269,1.00968719,64440.0,64438.0,0.023]
[1719144759478,0.04542701,64439.0,64438.0,0.023]
[1719144759679,0.04527194,64439.0,64438.0,0.023]
[1719144761049,1.00968719,64440.0,64438.0,0.023]
[1719144761182,1.00968719,64440.0,64439.0,0.05270805]
[1719144761382,1.00968719,64440.0,64439.0,0.07570805]
[1719144762424,1.00968719,64440.0,64439.0,0.07670805]
[1719144762866,1.01935983,64440.0,64439.0,0.07670805]
[1719144763393,1.01951502,64440.0,64439.0,0.07670805]
[1719144763564,1.02051502,64440.0,64439.0,0.07670805]
[1719144763967,1.01951502,64440.0,64439.0,0.07670805]
[1719144764381,1.02051502,64440.0,64439.0,0.07770805]
[1719144764555,1.33088102,64440.0,64439.0,0.07770805]
[1719144764763,1.47076459,64440.0,64439.0,0.07770805]
[1719144765359,1.46108602,64440.0,64439.0,0.07770805]
[1719144765559,1.4707588,64440.0,64439.0,0.07770805]
[1719144767169,1.32120838,64440.0,64439.0,0.07770805]
[1719144767410,1.47075877,64440.0,64439.0,0.07770805]
[1719144767787,1.5156685,64440.0,64439.0,0.07770805]
[1719144768570,1.33088117,64440.0,64439.0,0.07770805]
[1719144768848,1.51570371,64440.0,64439.0,0.07770805]
[1719144769240,1.46108648,64440.0,64439.0,0.07770805]
[1719144769406,1.51569049,64440.0,64439.0,0.07770805]
[1719144770194,1.51569049,64440.0,64439.0,0.09459676]
[1719144770400,1.51563493,64440.0,64439.0,0.09459676]
[1719144770822,1.37575674,64440.0,64439.0,0.09459676]
[1719144771861,1.33088179,64440.0,64439.0,0.09459676]
[1719144772085,1.37611971,64440.0,64439.0,0.04188871]
[1719144772246,2.17095171,64440.0,64439.0,0.04188871]
[1719144772448,2.17095171,64440.0,64439.0,0.025]
[1719144772645,2.17095171,64440.0,64439.0,0.002]
[1719144774889,2.11604038,64440.0,64439.0,0.002]
[1719144775132,2.1710163,64440.0,64439.0,0.002]
[1719144776707,2.1710163,64440.0,64439.0,0.0325935]
[1719144776909,2.1710163,64440.0,64439.0,0.0555935]
[1719144777942,2.11604038,64440.0,64439.0,0.0555935]
[1719144778174,2.17104154,64440.0,64439.0,0.0555935]
[1719144778530,2.11604038,64440.0,64439.0,0.0555935]
[1719144778738,2.17102812,64440.0,64439.0,0.0555935]
[1719144780370,2.17102812,64440.0,64439.0,0.025]
[1719144781053,2.17102812,64440.0,64439.0,0.002]
[1719144781882,2.17102333,64440.0,64439.0,0.002]
[1719144782250,2.17102333,64440.0,64439.0,0.002935]
[1719144782438,2.17102333,64440.0,64439.0,0.025935]
[1719144782641,2.17187333,64440.0,64439.0,0.025935]
[1719144783628,2.11689038,64440.0,64439.0,0.025935]
[1719144783832,2.17183511,64440.0,64439.0,0.025935]
[1719144785152,2.17183511,64440.0,64439.0,0.056622]
[1719144785328,2.27183511,64440.0,64439.0,0.056622]
[1719144785646,2.27183511,64440.0,64439.0,0.07223938]
[1719144786826,2.27170269,64440.0,64439.0,0.07223938]
[1719144787246,2.26202923,64440.0,64439.0,0.07223938]
[1719144787435,2.27167552,64440.0,64439.0,0.04155238]
[1719144787887,2.27167552,64440.0,64439.0,0.025935]
[1719144788649,2.27166435,64440.0,64439.0,0.025935]
[1719144789635,2.09756435,64440.0,64439.0,0.025935]
[1719144789762,1.99756435,64440.0,64439.0,0.025935]
[1719144790192,1.99749078,64440.0,64439.0,0.04155238]
[1719144793219,1.94279038,64440.0,64439.0,0.04155238]
[1719144793422,1.99723831,64440.0,64439.0,0.025935]
[1719144794290,2.51770431,64440.0,64439.0,0.002935]
[1719144794588,2.61770431,64440.0,64439.0,0.002935]
[1719144794814,2.85781843,64440.0,64439.0,0.002935]
[1719144796444,2.73416471,64440.0,64439.0,0.002935]
[1719144796699,2.92252159,64440.0,64439.0,0.001935]
[1719144796930,2.83884315,64440.0,64439.0,0.001935]
[1719144797177,2.90862245,64440.0,64439.0,0.002935]
[1719144797384,3.11330089,64440.0,64439.0,0.002935]
[1719144797582,3.09330089,64440.0,64439.0,0.002935]
[1719144797789,3.11330089,64440.0,64439.0,0.002935]
[1719144798214,3.11331121,64440.0,64439.0,0.002935]
[1719144799553,2.94884315,64440.0,64439.0,0.002935]
[1719144799789,3.11333275,64440.0,64439.0,0.002935]
[1719144800017,3.01333275,64440.0,64439.0,0.002935]
[1719144801047,3.17048482,64440.0,64439.0,0.002935]
[1719144801273,3.15048482,64440.0,64439.0,0.002935]
[1719144801492,3.17048482,64440.0,64439.0,0.002935]
[1719144801865,3.01307011,64440.0,64439.0,0.002935]
[1719144802065,3.17020596,64440.0,64439.0,0.002935]
[1719144802563,3.07552752,64440.0,64439.0,0.002935]
[1719144802777,2.91129348,64440.0,64439.0,0.002935]
[1719144803143,3.07557958,64440.0,64439.0,0.002935]
[1719144804509,2.91845081,64440.0,64439.0,0.002935]
[1719144805684,3.01845081,64440.0,64439.0,0.002935]
[1719144805897,2.85416471,64440.0,64439.0,0.002935]
[1719144806034,3.01842383,64440.0,64439.0,0.002935]
[1719144806458,3.01127993,64440.0,64439.0,0.002935]
[1719144806658,3.17553333,64440.0,64439.0,0.002935]
[1719144807258,3.07553333,64440.0,64439.0,0.002935]
[1719144807687,2.75416471,64440.0,64439.0,0.002935]
[1719144807894,3.07562281,64440.0,64439.0,0.002935]
[1719144809163,2.75416471,64440.0,64439.0,0.002935]
[1719144809328,3.23275849,64440.0,64439.0,0.002935]
[1719144812352,2.91127625,64440.0,64439.0,0.002935]
[1719144812562,3.2327481,64440.0,64439.0,0.002935]
[1719144813367,3.07563228,64440.0,64439.0,0.002935]
[1719144813587,3.23275046,64440.0,64439.0,0.002935]
[1719144815573,3.21595077,64440.0,64439.0,0.002935]
[1719144815803,3.23278483,64440.0,64439.0,0.002935]
[1719144817338,3.23279467,64440.0,64439.0,0.002935]
[1719144818855,3.23279637,64440.0,64439.0,0.002935]
[1719144822003,2.91127625,64440.0,64439.0,0.002935]
[1719144822180,3.23265914,64440.0,64439.0,0.002935]
[1719144822542,3.07550687,64440.0,64439.0,0.002935]
[1719144823353,2.91839533,64440.0,64439.0,0.002935]
[1719144823777,3.07094947,64440.0,64439.0,0.002935]
[1719144824939,2.90671885,64440.0,64439.0,0.002935]
[1719144825145,3.06623635,64440.0,64439.0,0.002935]
[1719144825658,2.90671885,64440.0,64439.0,0.002935]
[1719144825794,3.0662651,64440.0,64439.0,0.002935]
[1719144826197,3.2662651,64440.0,64439.0,0.002935]
[1719144826979,3.26615216,64440.0,64439.0,0.002935]
[1719144827774,3.06615216,64440.0,64439.0,0.002935]
[1719144828125,3.26615216,64440.0,64439.0,0.002935]
[1719144828521,3.10671885,64440.0,64439.0,0.002935]
[1719144828744,3.26615158,64440.0,64439.0,0.002935]
[1719144830917,3.11359744,64440.0,64439.0,0.002935]
[1719144831659,3.42396344,64440.0,64439.0,0.002935]
[1719144831888,3.42416192,64440.0,64439.0,0.002935]
[1719144835518,3.42433803,64440.0,64439.0,0.002935]
[1719144836665,3.42426869,64440.0,64439.0,0.002935]
[1719144837285,3.57682283,64440.0,64439.0,0.002935]
[1719144838052,3.41708485,64440.0,64439.0,0.002935]
[1719144838204,3.57677968,64440.0,64439.0,0.002935]
[1719144841206,3.57679349,64440.0,64439.0,0.002935]
[1719144843733,3.41708485,64440.0,64439.0,0.002935]
[1719144843964,3.57685135,64440.0,64439.0,0.002935]
[1719144844383,3.21708485,64440.0,64439.0,0.002935]
[1719144844578,3.57685135,64440.0,64439.0,0.002935]
[1719144844754,3.57705135,64440.0,64439.0,0.002935]
[1719144844929,3.37705135,64440.0,64439.0,0.002935]
[1719144845540,3.22494178,64440.0,64439.0,0.002935]
[1719144846160,3.13455033,64440.0,64439.0,0.002935]
[1719144847029,3.13452462,64440.0,64439.0,0.002935]
[1719144853460,3.13930562,64440.0,64439.0,0.002935]
[1719144853672,3.23803926,64440.0,64439.0,0.002935]
[1719144853881,3.3905934,64440.0,64439.0,0.002935]
[1719144854186,3.55555985,64440.0,64439.0,0.002935]
[1719144854758,3.53455985,64440.0,64439.0,0.000935]
[1719144855128,3.3975934,64440.0,64439.0,0.000935]
[1719144855343,3.56253671,64440.0,64439.0,0.000935]
[1719144856709,3.56254881,64440.0,64439.0,0.000935]
[1719144858982,0.4837,64435.0,64434.0,0.08544286]
[1719144859135,2.884391,64435.0,64434.0,0.08544286]
[1719144859457,3.50509257,64435.0,64434.0,0.08544286]
[1719144859719,3.74555511,64435.0,64434.0,0.08544286]
[1719144859949,3.92262788,64435.0,64434.0,0.08544286]
[1719144860583,3.7268681,64435.0,64434.0,0.08544286]
[1719144861445,3.7548681,64435.0,64434.0,0.08544286]
[1719144861930,3.7408681,64435.0,64434.0,0.08544286]
[1719144862146,3.7548681,64435.0,64434.0,0.08544286]